bitfinex/quotes_SOLUSD_20220211
["timestamp","ask_amount","ask_price","bid_price","bid_amount"]
[1644537799678,40.44127699,105.56,105.5,123.95484483]
[1644537799876,39.44127699,105.56,105.44,4.736]
[1644537800077,39.44127699,105.56,105.46,6.71740927]
[1644537800375,39.44127699,105.56,105.44,4.739]
[1644537800576,4.739,105.55,105.43,5.21306504]
[1644537800875,39.44127699,105.56,105.44,48.97031382]
[1644537801076,39.44127699,105.56,105.46,38.36997155]
[1644537801481,39.44127699,105.56,105.46,40.34838082]
[1644537801677,11.13,105.58,105.46,40.34838082]
[1644537801883,11.13,105.59,105.47,18.9594]
[1644537802079,23.4841,105.6,105.47,27.1364]
[1644537802282,23.4841,105.6,105.48,16.46307912]
[1644537802682,47.83251576,105.59,105.49,36.85528587]
[1644537802880,52.56951576,105.59,105.49,34.8768766]
[1644537803083,4.737,105.59,105.49,49.3455766]
[1644537803280,4.737,105.59,105.49,84.50808762]
[1644537803480,12.0,105.61,105.49,95.63808762]
[1644537803679,12.0,105.61,105.49,106.50008762]
[1644537803879,12.0,105.61,105.5,1.97840927]
[1644537804080,12.0,105.61,105.51,53.65882517]
[1644537804280,12.0,105.61,105.51,74.39349502]
[1644537804482,12.0,105.61,105.52,1.97840927]
[1644537804678,12.0,105.61,105.52,6.71440927]
[1644537804881,9.825,105.67,105.53,14.2118]
[1644537805080,9.825,105.67,105.54,4.734]
[1644537805281,9.825,105.67,105.55,11.13]
[1644537805481,9.825,105.67,105.56,4.734]
[1644537805779,56.11961769,105.67,105.57,35.26227996]
[1644537805979,56.11961769,105.67,105.59,40.07465855]
[1644537807082,4.733,105.66,105.54,58.491]
[1644537807279,4.733,105.66,105.54,58.741]
[1644537807480,4.733,105.66,105.54,60.71940927]
[1644537807980,4.733,105.66,105.54,60.46940927]
[1644537808180,38.9006476,105.65,105.55,59.62229467]
[1644537808382,38.30954793,105.63,105.55,45.41129467]
[1644537809283,36.8023741,105.61,105.55,45.41129467]
[1644537809783,4.735,105.64,105.55,45.41129467]
[1644537809982,11.13,105.65,105.55,45.41129467]
[1644537809983,15.865,105.65,105.55,45.41129467]
[1644537810581,15.865,105.65,105.55,55.48029467]
[1644537810783,52.26379005,105.65,105.55,55.48029467]
[1644537811183,52.26379005,105.65,105.55,45.41129467]
[1644537811683,54.49501159,105.65,105.55,45.41129467]
[1644537811884,54.49501159,105.65,105.52,4.735]
[1644537811885,68.70911159,105.65,105.52,4.735]
[1644537812182,68.70911159,105.65,105.48,47.3881]
[1644537812387,125.7041,105.64,105.48,64.5181]
[1644537812584,15.866,105.63,105.48,17.13]
[1644537812783,46.4125,105.62,105.48,17.13]
[1644537812983,56.06585082,105.61,105.49,45.51899753]
[1644537813486,56.06585082,105.61,105.49,47.739002]
[1644537813783,14.2206,105.6,105.49,45.51899753]
[1644537813984,15.867,105.59,105.46,1.97000447]
[1644537814184,103.92,105.58,105.43,0.47406504]
[1644537814484,103.92,105.58,105.43,5.21206504]
[1644537814485,58.2655,105.57,105.43,5.21206504]
[1644537814685,58.2655,105.57,105.44,4.739]
[1644537814889,105.81418358,105.57,105.45,60.13608125]
[1644537815083,47.54868358,105.57,105.46,4.738]
[1644537815286,47.54868358,105.57,105.47,56.84575785]
[1644537815483,4.738,105.62,105.48,4.738]
[1644537815683,59.0695,105.63,105.48,15.868]
[1644537815885,59.0695,105.63,105.48,22.118]
[1644537816083,59.0695,105.63,105.48,30.79584117]
[1644537816483,45.09187732,105.62,105.49,36.52550485]
[1644537816687,49.82787732,105.62,105.49,36.52550485]
[1644537816885,64.04567732,105.62,105.49,50.99220485]
[1644537817686,66.27689886,105.62,105.49,50.99220485]
[1644537817888,11.13,105.61,105.49,50.99220485]
[1644537818087,53.57453497,105.6,105.49,50.99220485]
[1644537818287,53.57453497,105.6,105.49,14.2167]
[1644537818586,72.89053497,105.6,105.48,4.738]
[1644537818788,2.23122154,105.59,105.48,4.738]
[1644537818986,14.2265,105.56,105.48,4.738]
[1644537819187,4.738,105.55,105.48,4.738]
[1644537819387,14.2265,105.56,105.49,34.55575007]
[1644537819688,15.868,105.59,105.49,34.55575007]
[1644537819887,11.13,105.59,105.49,34.55575007]
[1644537820089,24.1896,105.6,105.49,34.55575007]
[1644537820287,4.737,105.59,105.5,4.737]
[1644537820490,51.3956992,105.59,105.51,34.80886707]
[1644537820889,51.3956992,105.59,105.45,4.737]
[1644537821089,153.93892154,105.58,105.43,0.47406504]
[1644537821293,4.739,105.57,105.43,0.47406504]
[1644537821491,14.2284,105.54,105.43,14.70206504]
[1644537821891,45.27672067,105.54,105.44,45.83419906]
[1644537822092,45.27672067,105.54,105.44,43.16685456]
[1644537822298,45.27672067,105.54,105.44,41.09419906]
[1644537822492,2.23122154,105.53,105.44,41.09419906]
[1644537822694,34.65525057,105.52,105.44,41.09419906]
[1644537823092,34.65525057,105.52,105.43,0.47406504]
[1644537823293,18.10122154,105.51,105.43,0.47406504]
[1644537823492,66.48982154,105.51,105.41,0.34183673]
[1644537823791,14.2336,105.5,105.41,0.34183673]
[1644537823992,36.56811362,105.5,105.41,0.34183673]
[1644537824192,4.741,105.49,105.41,0.34183673]
[1644537824393,36.56811362,105.5,105.41,0.34183673]
[1644537824692,43.44073703,105.48,105.41,0.34183673]
[1644537825091,59.5186,105.51,105.41,0.34183673]
[1644537825295,18.9741,105.5,105.41,0.34183673]
[1644537825493,30.1041,105.5,105.41,0.34183673]
[1644537825692,2.23122154,105.49,105.41,0.34183673]
[1644537825896,24.74522154,105.49,105.41,0.34183673]
[1644537826092,38.30395018,105.48,105.41,0.34183673]
[1644537826292,52.53875018,105.48,105.41,0.34183673]
[1644537826494,4.741,105.47,105.41,0.34183673]
[1644537826694,41.71147353,105.46,105.41,0.34183673]
[1644537827295,4.742,105.49,105.41,0.34183673]
[1644537827496,18.9759,105.49,105.41,0.34183673]
[1644537828396,61.56954858,105.49,105.41,0.34183673]
[1644537829500,63.80077012,105.49,105.41,0.34183673]
[1644537829700,56.82754858,105.49,105.41,0.34183673]
[1644537830303,14.2339,105.49,105.41,0.34183673]
[1644537831313,59.81472866,105.49,105.41,0.34183673]
[1644537831709,14.2339,105.49,105.41,0.34183673]
[1644537831911,4.741,105.5,105.41,0.34183673]
[1644537832209,48.3886,105.51,105.41,0.34183673]
[1644537832410,48.3886,105.51,105.41,2.32799465]
[1644537832812,82.96229938,105.51,105.42,42.98058649]
[1644537833010,4.741,105.5,105.42,57.21048649]
[1644537833613,4.741,105.5,105.42,42.98058649]
[1644537834013,42.61884239,105.5,105.42,42.98058649]
[1644537834414,18.9734,105.5,105.42,42.98058649]
[1644537834715,4.741,105.5,105.42,42.98058649]
[1644537835116,15.871,105.53,105.42,42.98058649]
[1644537835515,59.79695662,105.52,105.42,57.21098649]
[1644537835717,43.85282686,105.5,105.42,42.98058649]
[1644537835946,39.3033,105.52,105.42,42.98058649]
[1644537836137,34.5633,105.52,105.42,42.98058649]
[1644537836739,36.79452154,105.52,105.42,42.98058649]
[1644537836941,23.2556,105.53,105.42,57.21098649]
[1644537837141,6.97122154,105.55,105.43,11.13]
[1644537837338,151.4876,105.57,105.43,13.36638976]
[1644537837538,72.7898,105.57,105.44,1.98638976]
[1644537837738,4.739,105.56,105.44,13.36638976]
[1644537837941,4.739,105.56,105.45,34.25117494]
[1644537838139,52.2586,105.58,105.46,25.3536]
[1644537838340,4.739,105.58,105.46,25.6036]
[1644537838538,97.6683,105.61,105.46,25.6036]
[1644537838539,4.738,105.6,105.47,1.98648617]
[1644537838739,54.3082,105.6,105.48,11.13]
[1644537839140,101.31866364,105.6,105.49,44.98948714]
[1644537839441,49.5702,105.6,105.5,14.2183]
[1644537839639,49.5702,105.6,105.5,25.3483]
[1644537840245,49.5702,105.6,105.51,35.86743033]
[1644537840443,49.5702,105.6,105.53,14.2155]
[1644537841043,75.2163,105.62,105.54,1.98648617]
[1644537841244,75.2163,105.62,105.55,11.13]
[1644537841450,75.2163,105.62,105.55,57.489841]
[1644537841645,40.66032112,105.61,105.55,50.185841]
[1644537841843,40.66032112,105.61,105.55,39.055841]
[1644537842043,45.39532112,105.61,105.55,39.055841]
[1644537842242,40.66032112,105.61,105.55,39.055841]
[1644537842643,75.2163,105.62,105.55,39.055841]
[1644537843049,75.2163,105.62,105.55,46.583841]
[1644537843243,75.2163,105.62,105.55,39.055841]
[1644537843644,48.60166245,105.61,105.55,39.055841]
[1644537843847,53.33666245,105.61,105.52,11.13]
[1644537844043,67.55416245,105.61,105.52,11.13]
[1644537844243,67.55416245,105.61,105.5,11.13]
[1644537844443,65.05038399,105.61,105.5,11.13]
[1644537844847,42.10216467,105.59,105.51,60.62705626]
[1644537845244,14.2175,105.61,105.52,11.13]
[1644537845445,4.736,105.6,105.52,11.13]
[1644537845649,75.2163,105.62,105.52,13.12674642]
[1644537846245,75.2163,105.62,105.53,34.93043902]
[1644537846445,51.6151,105.63,105.54,11.13]
[1644537846646,46.8791,105.63,105.55,35.26288767]
[1644537847748,23.9641,105.64,105.55,49.47568767]
[1644537847948,23.9641,105.64,105.55,61.04968767]
[1644537848150,4.735,105.66,105.55,74.17643409]
[1644537848349,124.1259,105.67,105.55,74.17643409]
[1644537848547,4.735,105.68,105.55,74.17643409]
[1644537848748,45.44583249,105.67,105.55,74.17643409]
[1644537848947,45.44583249,105.67,105.55,88.83566862]
[1644537849148,45.44583249,105.67,105.55,83.08566862]
[1644537849347,4.734,105.71,105.55,83.08566862]
[1644537849547,4.734,105.71,105.55,242.95870288]
[1644537850148,6.96522154,105.71,105.55,242.95870288]
[1644537850349,44.09250916,105.7,105.55,214.72872193]
[1644537850553,18.9414,105.69,105.55,200.00568767]
[1644537850753,35.8936405,105.68,105.55,200.00568767]
[1644537850950,4.734,105.67,105.55,200.00568767]
[1644537851152,36.29088375,105.66,105.55,200.00568767]
[1644537851350,4.734,105.65,105.55,200.00568767]
[1644537851551,40.67434737,105.64,105.55,200.00568767]
[1644537852251,40.67434737,105.64,105.55,199.75568767]
[1644537852654,4.735,105.63,105.55,60.60568767]
[1644537852855,34.61728782,105.62,105.55,35.26288767]
[1644537853053,4.735,105.61,105.53,14.2149]
[1644537853258,4.735,105.61,105.51,11.13]
[1644537853259,6.96622154,105.61,105.51,11.13]
[1644537853455,6.96622154,105.61,105.47,23.1129]
[1644537853656,2.23122154,105.6,105.47,15.867]
[1644537853857,2.23122154,105.6,105.47,11.38]
[1644537854056,34.84524156,105.59,105.48,35.33282337]
[1644537854255,39.58224156,105.59,105.48,35.33282337]
[1644537854459,39.58224156,105.59,105.48,46.46282337]
[1644537854858,39.58224156,105.59,105.49,14.2202]
[1644537855057,34.84524156,105.59,105.58,4.381721]
[1644537855257,34.84524156,105.59,105.58,0.001721]
[1644537855457,4.735,105.61,105.58,0.001721]
[1644537855659,4.735,105.59,105.58,0.001721]
[1644537855866,18.9545,105.6,105.58,0.001721]
[1644537856059,14.2195,105.6,105.58,0.001721]
[1644537856257,4.735,105.59,105.58,0.001721]
[1644537856659,4.735,105.61,105.58,0.001721]
[1644537857462,28.6023,105.62,105.58,0.001721]
[1644537859569,30.83352154,105.62,105.58,0.001721]
[1644537859769,26.09852154,105.62,105.58,0.001721]
[1644537859965,4.734,105.61,105.58,0.001721]
[1644537860165,18.953,105.61,105.58,0.001721]
[1644537860567,4.734,105.61,105.58,0.001721]
[1644537861867,6.96522154,105.61,105.58,0.001721]
[1644537862283,59.0248,105.6,105.58,0.001721]
[1644537863085,47.8948,105.6,105.58,0.001721]
[1644537863485,50.12602154,105.6,105.58,0.001721]
[1644537863791,4.735,105.59,105.58,0.001721]
[1644537864790,47.8948,105.6,105.58,0.001721]
[1644537866487,4.735,105.59,105.58,0.001721]
[1644537866689,47.8948,105.6,105.58,0.001721]
[1644537866888,50.12602154,105.6,105.58,0.001721]
[1644537867290,47.8948,105.6,105.58,0.001721]
[1644537867689,4.735,105.59,105.58,0.001721]
[1644537867887,47.8948,105.6,105.58,0.001721]
[1644537868088,47.8948,105.6,105.59,3.03219997]
[1644537868290,22.6394,105.63,105.59,3.03219997]
[1644537868587,42.22286915,105.64,105.59,46.01349197]
[1644537868790,42.22286915,105.64,105.59,3.03219997]
[1644537870390,13.0,105.63,105.52,47.377]
[1644537870591,40.897,105.63,105.5,58.5184]
[1644537870791,36.0629,105.62,105.48,49.03791934]
[1644537870992,27.899,105.61,105.48,47.7014]
[1644537871193,53.55701344,105.6,105.49,35.19602545]
[1644537871393,4.737,105.59,105.46,1.33651934]
[1644537871695,47.1473,105.58,105.46,1.33651934]
[1644537871891,47.1473,105.58,105.44,1.33651934]
[1644537871892,11.13,105.57,105.44,1.33651934]
[1644537872192,4.739,105.56,105.43,27.32202718]
[1644537872393,61.93353552,105.55,105.44,36.69663757]
[1644537872593,18.9679,105.54,105.42,26.5824787]
[1644537872793,41.8218,105.54,105.41,12.80835607]
[1644537872992,44.05302154,105.54,105.41,12.80835607]
[1644537873190,44.05302154,105.54,105.41,11.47183673]
[1644537873191,11.13,105.53,105.41,11.47183673]
[1644537873490,36.83755675,105.52,105.42,34.5625746]
[1644537873892,24.903,105.53,105.42,34.5625746]
[1644537874095,39.1336,105.53,105.42,48.7931746]
[1644537874291,24.903,105.53,105.42,79.07558725]
[1644537874492,24.903,105.53,105.42,90.20558725]
[1644537874892,42.89004973,105.52,105.42,90.20558725]
[1644537875093,42.89004973,105.52,105.42,90.45558725]
[1644537875291,42.89004973,105.52,105.42,90.20558725]
[1644537875691,42.89004973,105.52,105.42,59.9231746]
[1644537876794,47.63004973,105.52,105.42,59.9231746]
[1644537877891,42.89004973,105.52,105.42,59.9231746]
[1644537878490,42.89004973,105.52,105.42,75.3756533]
[1644537879493,42.89004973,105.52,105.42,64.2456533]
[1644537879698,42.89004973,105.52,105.42,48.7931746]
[1644537880095,42.89004973,105.52,105.42,59.9231746]
[1644537880295,29.643,105.53,105.42,62.20087312]
[1644537880495,22.8539,105.54,105.42,92.48328577]
[1644537880897,22.5619,105.55,105.42,93.81980511]
[1644537881098,98.7559,105.57,105.43,1.33651934]
[1644537881298,22.8081,105.57,105.47,14.2201]
[1644537881501,96.8464,105.6,105.48,11.13]
[1644537881800,96.8464,105.6,105.48,28.86017722]
[1644537881801,24.0603,105.6,105.48,28.86017722]
[1644537881999,22.558,105.62,105.49,17.48017722]
[1644537882196,22.558,105.62,105.5,11.13]
[1644537882398,40.75626092,105.59,105.51,20.94398978]
[1644537882596,40.75626092,105.59,105.51,32.07398978]
[1644537882797,40.75626092,105.59,105.51,34.3516883]
[1644537883000,22.558,105.62,105.51,34.3516883]
[1644537883200,22.558,105.62,105.52,2.02769852]
[1644537883409,23.554,105.64,105.55,14.2105]
[1644537883600,23.554,105.64,105.56,11.13]
[1644537883801,296.50598945,105.67,105.56,11.13]
[1644537883802,172.70298945,105.67,105.56,11.13]
[1644537884002,46.34816332,105.66,105.57,42.94303194]
[1644537884404,46.34816332,105.66,105.58,25.3378]
[1644537884603,41.61416332,105.66,105.59,38.06458177]
[1644537885005,72.1825,105.67,105.59,38.06458177]
[1644537885204,18.9407,105.7,105.59,49.19458177]
[1644537885205,6.02508945,105.7,105.59,49.19458177]
[1644537885403,1.29108945,105.7,105.59,49.19458177]
[1644537885603,76.80388945,105.71,105.59,49.19458177]
[1644537885805,72.07088945,105.71,105.59,49.19458177]
[1644537886003,48.33391896,105.7,105.59,49.44458177]
[1644537886906,48.33391896,105.7,105.62,37.38865486]
[1644537887102,70.7798,105.71,105.62,37.38865486]
[1644537887103,37.20469558,105.68,105.62,37.38865486]
[1644537888703,37.20469558,105.68,105.62,51.59275486]
[1644537889104,37.20469558,105.68,105.6,11.13]
[1644537889304,4.733,105.67,105.57,52.0901]
[1644537889510,13.494,105.67,105.57,4.732]
[1644537890006,41.47671491,105.66,105.58,41.60078188]
[1644537890304,4.733,105.65,105.58,14.2086]
[1644537890505,4.733,105.65,105.55,11.13]
[1644537890706,4.733,105.65,105.52,11.13]
[1644537890914,63.5631,105.65,105.51,11.13]
[1644537891306,35.8192369,105.64,105.52,42.90756334]
[1644537891506,14.218,105.61,105.52,42.90756334]
[1644537891707,4.736,105.6,105.52,42.90756334]
[1644537891906,41.97899399,105.59,105.51,14.2183]
[1644537892714,4.736,105.6,105.51,14.2183]
[1644537893015,14.2179,105.62,105.51,25.3483]
[1644537893217,4.736,105.61,105.51,25.3483]
[1644537893820,44.1447802,105.6,105.52,45.68669879]
[1644537894016,44.1447802,105.6,105.52,59.90359879]
[1644537894818,4.736,105.59,105.52,59.90359879]
[1644537895119,36.66628955,105.58,105.52,59.90359879]
[1644537895317,36.66628955,105.58,105.52,14.2169]
[1644537895923,36.66628955,105.58,105.5,14.2195]
[1644537896121,4.737,105.57,105.5,14.2195]
[1644537896317,42.32321486,105.56,105.51,44.49655468]
[1644537896518,42.32321486,105.56,105.5,14.2195]
[1644537897517,42.32321486,105.56,105.51,42.65634762]
[1644537897718,14.2195,105.6,105.51,56.87544762]
[1644537897918,4.737,105.59,105.51,56.87544762]
[1644537898121,4.736,105.6,105.51,56.87544762]
[1644537898524,4.736,105.6,105.51,14.2191]
[1644537898928,18.9555,105.6,105.49,14.2209]
[1644537899126,30.0855,105.6,105.49,14.2209]
[1644537899530,42.92378295,105.59,105.5,43.99175307]
[1644537900433,42.92378295,105.59,105.5,58.21155307]
[1644537900832,4.737,105.58,105.5,69.34155307]
[1644537901031,43.37505793,105.57,105.5,69.34155307]
[1644537902033,43.37505793,105.57,105.5,25.3498]
[1644537902232,43.37505793,105.57,105.5,14.2198]
[1644537902437,43.37505793,105.57,105.48,14.2223]
[1644537902438,4.737,105.56,105.48,14.2223]
[1644537902635,4.737,105.56,105.47,11.13]
[1644537902835,4.737,105.56,105.42,1.33651934]
[1644537902836,4.737,105.56,105.46,11.13]
[1644537903032,39.85901533,105.55,105.46,47.71578837]
[1644537903449,54.08511533,105.55,105.46,61.94188837]
[1644537904656,39.85901533,105.55,105.46,73.07188837]
[1644537905150,39.85901533,105.55,105.46,14.2261]
[1644537905151,39.35901533,105.55,105.46,14.2261]
[1644537905349,4.739,105.54,105.44,14.2279]
[1644537905548,39.35901533,105.55,105.44,25.3579]
[1644537906149,39.35901533,105.55,105.45,41.13318426]
[1644537906349,39.35901533,105.55,105.46,14.225]
[1644537906553,39.35901533,105.55,105.47,46.68603399]
[1644537906749,39.35901533,105.55,105.45,11.13]
[1644537906952,4.739,105.54,105.44,11.13]
[1644537907151,4.739,105.54,105.41,26.30177068]
[1644537907752,48.16174348,105.53,105.44,14.2278]
[1644537908153,4.74,105.52,105.44,14.2278]
[1644537908353,4.74,105.52,105.43,11.13]
[1644537908952,44.0629055,105.51,105.44,47.34579586]
[1644537910153,45.46392711,105.49,105.45,14.2276]
[1644537910354,93.4886337,105.49,105.45,14.2276]
[1644537910754,93.4886337,105.49,105.43,11.13]
[1644537911357,93.4886337,105.49,105.42,47.4243]
[1644537911758,93.4886337,105.49,105.44,14.229]
[1644537912157,93.4886337,105.49,105.42,38.4673049]
[1644537912762,45.46392711,105.49,105.42,38.4673049]
[1644537913357,45.46392711,105.49,105.43,14.2304]
[1644537913757,82.37548144,105.49,105.44,42.0831785]
[1644537914759,82.37548144,105.49,105.43,11.13]
[1644537915662,82.37548144,105.49,105.44,42.21121917]
[1644537915860,82.37548144,105.49,105.44,56.43971917]
[1644537918066,45.46392711,105.49,105.44,56.43971917]
[1644537918781,12.27725628,105.49,105.45,11.13]
[1644537918980,4.95452426,105.49,105.46,14.2233]
[1644537919181,125.5348,105.56,105.48,42.21121917]
[1644537919382,35.05872111,105.55,105.48,42.21121917]
[1644537919586,125.5348,105.56,105.48,42.21121917]
[1644537919884,125.5348,105.56,105.48,53.34121917]
[1644537920283,4.74,105.56,105.48,53.34121917]
[1644537920487,4.738,105.58,105.49,14.2209]
[1644537920683,40.62502004,105.59,105.5,51.84501382]
[1644537920887,6.02808945,105.63,105.51,11.13]
[1644537921084,4.737,105.63,105.51,11.13]
[1644537921285,4.737,105.63,105.51,11.38]
[1644537921889,35.54568561,105.62,105.52,56.42861917]
[1644537922109,35.54568561,105.62,105.54,4.45381382]
[1644537922510,35.54568561,105.62,105.54,15.58381382]
[1644537922914,74.3542,105.64,105.54,15.58381382]
[1644537923106,102.3265,105.67,105.55,16.27672876]
[1644537923107,108.35258945,105.67,105.55,16.27672876]
[1644537923306,1.29108945,105.68,105.56,11.13]
[1644537923513,1.29108945,105.68,105.56,13.19442876]
[1644537923706,1.29108945,105.69,105.56,13.44442876]
[1644537923907,52.97037352,105.68,105.57,42.21121917]
[1644537924112,47.73737352,105.68,105.59,19.15951382]
[1644537924308,47.73737352,105.68,105.6,11.13]
[1644537924510,4.733,105.67,105.61,42.21121917]
[1644537924808,4.733,105.68,105.61,42.21121917]
[1644537925009,4.732,105.69,105.61,42.21121917]
[1644537925211,4.732,105.69,105.59,11.13]
[1644537925807,4.732,105.69,105.61,14.2057]
[1644537926212,50.74946706,105.69,105.62,45.16379077]
[1644537926411,46.01746706,105.69,105.62,45.16379077]
[1644537926612,76.4743,105.7,105.62,45.16379077]
[1644537926811,4.732,105.72,105.62,79.71599077]
[1644537927013,4.731,105.73,105.62,79.71599077]
[1644537927615,4.731,105.73,105.64,2.00124222]
[1644537927815,74.63018945,105.76,105.67,40.09691119]
[1644537928015,73.3391,105.76,105.67,59.44291119]
[1644537928215,73.3391,105.76,105.67,59.69291119]
[1644537928415,4.731,105.77,105.67,61.76806765]
[1644537928718,0.04113564,105.78,105.67,109.07326765]
[1644537928922,0.04113564,105.78,105.68,14.1948]
[1644537929116,0.04113564,105.78,105.69,11.13]
[1644537929316,0.04113564,105.78,105.69,167.84288113]
[1644537929516,0.04113564,105.78,105.7,139.15]
[1644537929717,3.0295329,105.79,105.71,11.13]
[1644537929916,0.04113564,105.78,105.72,146.2181218]
[1644537930117,82.8314,105.88,105.73,24.13]
[1644537930320,82.8314,105.88,105.73,30.38]
[1644537930519,82.8314,105.88,105.74,4.725]
[1644537930718,78.1034,105.88,105.75,11.13]
[1644537930917,4.725,105.89,105.76,4.725]
[1644537931118,36.7908888,105.94,105.77,44.32244614]
[1644537931119,4.725,105.92,105.77,44.32244614]
[1644537931321,80.9491,105.93,105.78,4.723]
[1644537931519,80.9491,105.93,105.79,11.13]
[1644537931720,83.18032154,105.93,105.79,19.005]
[1644537931922,83.18032154,105.93,105.8,2.07998986]
[1644537932122,34.44223117,105.92,105.81,22.03191831]
[1644537932425,34.44223117,105.92,105.81,22.28191831]
[1644537933021,34.44223117,105.92,105.81,24.36190817]
[1644537933220,34.44223117,105.92,105.81,28.28191831]
[1644537933425,80.9491,105.93,105.81,28.28191831]
[1644537933426,42.46958772,105.9,105.81,11.38]
[1644537933823,44.70080926,105.9,105.81,11.38]
[1644537934027,4.723,105.89,105.81,11.38]
[1644537934623,43.11643879,105.88,105.81,11.38]
[1644537934824,2.23122154,105.89,105.81,12.11999841]
[1644537935026,4.723,105.92,105.81,12.11999841]
[1644537935226,83.17932154,105.93,105.81,12.11999841]
[1644537935525,83.17932154,105.93,105.81,21.95099841]
[1644537935723,80.9481,105.93,105.81,27.95099841]
[1644537935924,116.94100263,105.93,105.83,34.70816994]
[1644537936125,112.21900263,105.93,105.85,9.38619451]
[1644537936327,114.45022417,105.93,105.84,11.13]
[1644537936525,4.722,105.92,105.82,11.13]
[1644537936724,4.722,105.92,105.82,11.38]
[1644537936925,4.722,105.92,105.82,11.13]
[1644537937124,6.95322154,105.92,105.82,11.13]
[1644537937325,40.08695422,105.91,105.83,43.06831448]
[1644537937727,40.08695422,105.91,105.82,11.13]
[1644537937928,4.722,105.9,105.82,11.13]
[1644537938126,4.722,105.9,105.8,11.13]
[1644537938326,6.95322154,105.9,105.8,11.13]
[1644537938828,42.99041203,105.89,105.8,11.13]
[1644537939025,36.49865116,105.87,105.81,5.09034394]
[1644537939225,36.49865116,105.87,105.8,11.13]
[1644537939825,4.723,105.89,105.8,11.38]
[1644537940027,27.5406,105.92,105.8,11.38]
[1644537940426,2.23122154,105.91,105.8,11.38]
[1644537940628,2.23122154,105.91,105.8,11.13]
[1644537940629,4.723,105.9,105.8,11.13]
[1644537940850,40.10525716,105.89,105.8,11.13]
[1644537941027,4.723,105.88,105.8,11.13]
[1644537941230,6.95422154,105.88,105.78,11.13]
[1644537941532,4.723,105.88,105.78,11.13]
[1644537941727,35.99388318,105.87,105.79,32.82930427]
[1644537941926,35.99388318,105.87,105.79,43.95930427]
[1644537942127,4.724,105.91,105.8,2.07998986]
[1644537942328,2.58514891,106.0,105.8,2.07998986]
[1644537942329,4.724,105.94,105.81,11.13]
[1644537942527,4.722,105.96,105.81,159.63616912]
[1644537942726,4.721,105.97,105.82,2.07998986]
[1644537942928,4.721,105.97,105.83,11.13]
[1644537943129,35.81127466,105.96,105.83,22.39506018]
[1644537943327,41.59292355,105.94,105.84,2.07998986]
[1644537943527,41.59292355,105.94,105.84,13.20998986]
[1644537943727,4.721,105.93,105.84,11.13]
[1644537943929,4.721,105.93,105.82,11.13]
[1644537944330,2.23122154,105.92,105.82,11.13]
[1644537944529,44.96185373,105.9,105.82,11.13]
[1644537944729,4.723,105.89,105.82,11.13]
[1644537945129,4.723,105.89,105.79,11.13]
[1644537945329,0.04094222,105.88,105.79,11.13]
[1644537945529,47.18407007,105.88,105.77,2.07998986]
[1644537945730,4.725,105.87,105.74,11.13]
[1644537946029,0.45,105.84,105.69,11.13]
[1644537946230,15.89794222,105.83,105.67,11.13]
[1644537946531,39.88790781,105.81,105.68,33.17851153]
[1644537946732,0.04094222,105.82,105.69,11.13]
[1644537946929,0.04094222,105.8,105.69,20.47933313]
[1644537947129,0.04094222,105.81,105.69,35.11566836]
[1644537947330,0.04094222,105.83,105.72,14.1869]
[1644537947631,0.04094222,105.83,105.73,11.13]
[1644537947830,38.42920973,105.83,105.74,10.91585292]
[1644537948230,38.42920973,105.83,105.74,11.16585292]
[1644537948432,38.42920973,105.83,105.74,22.29585292]
[1644537951133,0.04094222,105.83,105.74,36.47995292]
[1644537951335,0.04094222,105.84,105.74,36.47995292]
[1644537951537,0.04094222,105.84,105.75,16.71706912]
[1644537951837,115.71788945,105.88,105.75,16.71706912]
[1644537951838,0.04094222,105.85,105.76,11.13]
[1644537952038,0.04094222,105.87,105.76,11.13]
[1644537952236,0.04094222,105.87,105.77,32.54503608]
[1644537952536,0.04094222,105.87,105.79,11.54932837]
[1644537952736,0.04094222,105.87,105.79,22.67932837]